bitfinex/quotes_ETHUSD_20250604
["timestamp","ask_amount","ask_price","bid_price","bid_amount"]
[1749001369591,0.00105739,2606.9,2606.8,25.00899516]
[1749001370101,0.00105739,2606.9,2606.8,26.73599516]
[1749001371703,5.746e-05,2606.9,2606.8,26.73599516]
[1749001373900,5.746e-05,2606.9,2606.8,18.65887064]
[1749001374302,5.746e-05,2606.9,2606.8,22.49499155]
[1749001375397,5.746e-05,2606.9,2606.8,28.91899155]
[1749001379184,5.746e-05,2606.9,2606.8,31.21899155]
[1749001379519,5.746e-05,2606.9,2606.8,28.91899155]
[1749001381716,5.746e-05,2606.9,2606.8,37.19199155]
[1749001382020,1.2872,2607.6,2607.4,8.0]
[1749001382223,1.2872,2607.6,2607.5,1.722]
[1749001387190,1.2872,2607.6,2607.5,9.995]
[1749001389423,1.2872,2607.6,2607.5,16.415]
[1749001391133,1.2872,2607.6,2607.5,24.415]
[1749001391655,0.02,2607.9,2607.5,24.415]
[1749001391951,0.02,2607.9,2607.6,11.83488728]
[1749001392112,0.02,2607.9,2607.6,8.0]
[1749001392930,0.02,2607.9,2607.6,11.83490997]
[1749001393513,1.2737,2607.9,2607.6,11.83490997]
[1749001395100,1.2737,2607.9,2607.6,8.0]
[1749001397120,1.2737,2607.9,2607.6,11.83492051]
[1749001397322,1.2737,2607.9,2607.6,11.83492869]
[1749001397677,0.02,2607.9,2607.8,8.0]
[1749001398012,0.02,2607.9,2607.8,21.83464989]
[1749001398561,0.02,2607.9,2607.8,22.38464989]
[1749001399334,0.02,2607.9,2607.8,28.80064989]
[1749001400049,0.02,2607.9,2607.8,29.68109424]
[1749001400210,0.02,2607.9,2607.8,31.98109424]
[1749001400511,0.00122243,2607.9,2607.8,31.98109424]
[1749001401052,0.00010503,2607.9,2607.8,31.98109424]
[1749001402249,0.00010503,2607.9,2607.8,31.84136052]
[1749001402458,0.00010503,2607.9,2607.8,33.13752414]
[1749001409148,0.00010503,2607.9,2607.8,26.0324056]
[1749001409345,0.00010503,2607.9,2607.8,29.86705549]
[1749001410442,1.3397,2608.8,2608.3,3.83380194]
[1749001410647,1.3397,2608.8,2608.4,1.716]
[1749001410888,1.3397,2608.8,2608.5,10.0]
[1749001411186,1.3397,2608.8,2608.6,8.0]
[1749001411350,1.3397,2608.8,2608.4,1.716]
[1749001411551,1.3397,2608.8,2608.6,8.0]
[1749001412186,1.3397,2608.8,2608.4,1.716]
[1749001412558,1.3397,2608.8,2608.6,8.0]
[1749001412886,1.3397,2608.8,2608.4,1.716]
[1749001413058,1.3397,2608.8,2608.6,8.0]
[1749001413491,1.3397,2608.8,2608.7,16.27]
[1749001414198,1.3397,2608.8,2608.7,17.986]
[1749001415496,0.02,2608.9,2608.8,8.0]
[1749001415655,0.02,2608.9,2608.8,11.83318]
[1749001415988,0.02,2608.9,2608.8,21.83318]
[1749001416994,0.02,2608.9,2608.8,24.45605425]
[1749001417293,0.02,2608.9,2608.8,21.83318]
[1749001417589,0.02,2608.9,2608.8,24.45605425]
[1749001418289,0.02,2608.9,2608.8,17.162569]
[1749001421581,0.02,2608.9,2608.8,25.284569]
[1749001423291,0.02,2608.9,2608.8,28.45744325]
[1749001423589,0.00151373,2608.9,2608.8,29.42418687]
[1749001424158,0.00151373,2608.9,2608.8,25.582015]
[1749001427874,0.00151373,2608.9,2608.8,21.198835]
[1749001428074,0.00151373,2608.9,2608.8,24.45153]
[1749001429208,0.00151373,2608.9,2608.8,20.20909]
[1749001429510,0.00151373,2608.9,2608.8,19.864329]
[1749001430675,0.00151373,2608.9,2608.8,23.697509]
[1749001437166,0.00151373,2608.9,2608.8,19.862329]
[1749001437317,0.00151373,2608.9,2608.8,23.695509]
[1749001439730,0.00151373,2608.9,2608.8,15.579509]
[1749001439936,0.00151373,2608.9,2608.8,18.445493]
[1749001440133,0.00151373,2608.9,2608.8,10.335493]
[1749001440333,1.24601373,2608.9,2608.8,1.71]
[1749001440637,1.24601373,2608.9,2608.7,8.27]
[1749001440825,1.71430253,2608.9,2608.8,1.71]
[1749001441023,1.71430253,2608.9,2608.8,9.71]
[1749001441270,1.32741373,2608.9,2608.8,9.71]
[1749001447068,1.32741373,2608.9,2608.8,16.108]
[1749001447973,1.32741373,2608.9,2608.8,8.0]
[1749001448332,1.32741373,2608.9,2608.8,9.71]
[1749001453238,0.00151373,2608.9,2608.8,9.71]
[1749001453438,0.00151373,2608.9,2608.8,19.71]
[1749001453846,0.00151373,2608.9,2608.8,23.54318]
[1749001454264,0.00151373,2608.9,2608.8,19.71]
[1749001456285,0.00151373,2608.9,2608.8,1.71]
[1749001457508,0.00151373,2608.9,2608.8,5.073377]
[1749001458302,0.00151373,2608.9,2608.8,13.073377]
[1749001458783,0.00151373,2608.9,2608.8,12.092377]
[1749001460157,0.00151373,2608.9,2608.8,3.34813901]
[1749001460370,0.00151373,2608.9,2608.8,3.745629]
[1749001462155,0.00151373,2608.9,2608.8,11.745629]
[1749001464402,0.00151373,2608.9,2608.8,15.578809]
[1749001466628,0.00151373,2608.9,2608.8,9.71]
[1749001467173,0.00151373,2608.9,2608.8,13.54318]
[1749001467372,0.00151373,2608.9,2608.8,16.004909]
[1749001468576,0.00151373,2608.9,2608.8,12.171729]
[1749001469369,0.00151373,2608.9,2608.8,16.004909]
[1749001469571,0.00010657,2608.9,2608.8,16.004909]
[1749001470427,0.00010657,2608.9,2608.8,16.554909]
[1749001474803,0.00010657,2608.9,2608.8,22.943909]
[1749001477948,0.00010657,2608.9,2608.8,33.34678325]
[1749001479741,1.2054,2609.6,2609.1,20.0]
[1749001479944,1.2054,2609.6,2609.1,10.0]
[1749001480156,1.2054,2609.6,2609.2,5.460571]
[1749001480446,1.2054,2609.6,2609.4,10.0]
[1749001480657,1.2054,2609.6,2609.5,1.704]
[1749001482515,1.2054,2609.6,2609.5,9.971]
[1749001483464,1.2366,2609.9,2609.5,9.971]
[1749001483629,1.2366,2609.9,2609.8,13.83171124]
[1749001483630,0.02,2609.9,2609.8,13.83171124]
[1749001483834,0.02,2609.9,2609.8,16.386]
[1749001485429,0.02,2609.9,2609.8,12.33907]
[1749001487375,0.02,2609.9,2609.8,6.386]
[1749001489767,1.2111,2609.8,2609.5,9.971]
[1749001489962,1.2111,2609.8,2609.7,2.153169]
[1749001492056,1.2111,2609.8,2609.7,18.086]
[1749001492246,1.2111,2609.8,2609.7,10.0]
[1749001492746,1.2111,2609.8,2609.7,18.086]
[1749001493351,1.2111,2609.8,2609.7,9.64968455]
[1749001493553,1.2111,2609.8,2609.7,9.969]
[1749001493885,1.2111,2609.8,2609.7,11.745876]
[1749001494187,1.2111,2609.8,2609.7,12.802511]
[1749001494386,0.02,2609.9,2609.7,9.963]
[1749001494682,0.02,2609.9,2609.8,20.21271124]
[1749001495454,0.02,2609.9,2609.8,21.91071124]
[1749001496065,0.02,2609.9,2609.8,9.473169]
[1749001496271,0.02,2609.9,2609.8,15.582169]
[1749001497000,0.02,2609.9,2609.8,13.526646]
[1749001497163,0.02,2609.9,2609.8,5.447646]
[1749001497362,0.02,2609.9,2609.8,13.525646]
[1749001498270,0.02,2609.9,2609.8,5.447646]
[1749001498485,0.02,2609.9,2609.8,13.525646]
[1749001498671,0.02,2609.9,2609.8,3.01269]
[1749001499072,0.02,2609.9,2609.8,11.09069]
[1749001500375,0.02,2609.9,2609.8,8.078]
[1749001500774,1.3311,2609.9,2609.7,8.265]
[1749001501019,1.72649742,2609.9,2609.8,1.698]
[1749001502213,1.3311,2609.9,2609.8,1.698]
[1749001504097,1.3311,2609.9,2609.8,8.076]
[1749001509759,0.02,2609.9,2609.8,8.076]
[1749001513248,0.02,2609.9,2609.1,7.78]
[1749001513456,0.02,2609.9,2609.8,8.265]
[1749001513763,0.02,2609.9,2609.8,9.963]
[1749001514642,0.02,2609.9,2609.8,16.338]
[1749001515024,0.02,2609.9,2609.8,26.338]
[1749001515225,0.02,2609.9,2609.8,33.8315268]
[1749001515446,0.02,2609.9,2609.8,34.33766245]
[1749001515647,0.00154595,2609.9,2609.8,34.33766245]
[1749001517161,0.00154595,2609.9,2609.8,36.63466245]
[1749001517874,0.00154595,2609.9,2609.8,22.64671124]
[1749001518078,0.00154595,2609.9,2609.8,30.71871124]
[1749001519243,0.00154595,2609.9,2609.8,33.34158549]
[1749001519488,0.00154595,2609.9,2609.8,35.63858549]
[1749001519988,0.00154595,2609.9,2609.8,36.02188549]
[1749001520783,0.00154595,2609.9,2609.8,37.01696245]
[1749001520947,0.00016904,2609.9,2609.8,37.01696245]
[1749001521872,0.35882175,2610.7,2610.6,3.83053704]
[1749001522046,0.35882175,2610.7,2610.6,15.52853704]
[1749001524080,0.35882175,2610.7,2610.6,8.09118904]
[1749001524284,0.35882175,2610.7,2610.6,12.80842604]
[1749001524484,0.35882175,2610.7,2610.6,5.098817]
[1749001524757,0.35882175,2610.7,2610.6,4.151786]
[1749001525887,0.35882175,2610.7,2610.6,10.391191]
[1749001526471,0.35882175,2610.7,2610.6,12.52372804]
[1749001526688,0.35882175,2610.7,2610.6,21.83910084]
[1749001527601,0.35882175,2610.7,2610.6,25.01197509]
[1749001528189,0.03231499,2610.7,2610.6,25.01197509]
[1749001529106,0.03231499,2610.7,2610.6,22.38810084]
[1749001531114,0.03231499,2610.7,2610.6,25.01097509]
[1749001531699,0.03231499,2610.7,2610.6,33.03097509]
[1749001531906,0.03231499,2610.7,2610.6,40.81097509]
[1749001533721,0.03231499,2610.7,2610.6,40.80897509]
[1749001538201,0.02338687,2610.8,2610.7,22.38039031]
[1749001538510,0.02338687,2610.8,2610.7,32.87861445]
[1749001541445,0.00282423,2610.8,2610.7,32.87861445]
[1749001541591,0.00282423,2610.8,2610.7,25.58755576]
[1749001541999,0.00029907,2610.8,2610.7,25.58755576]
[1749001542622,0.00029907,2610.8,2610.7,25.09861445]
[1749001548258,0.05416942,2611.3,2611.2,27.29953111]
[1749001548553,0.05416942,2611.3,2611.2,38.50390391]
[1749001550446,0.00651538,2611.3,2611.2,38.50390391]
[1749001553629,0.00651538,2611.3,2611.2,24.47973075]
[1749001554041,0.00651538,2611.3,2611.2,23.99451336]
[1749001554249,0.00651538,2611.3,2611.2,32.37238761]
[1749001555031,0.00651538,2611.3,2611.2,34.66938761]
[1749001555514,0.00651538,2611.3,2611.2,24.87038761]
[1749001555724,0.00651538,2611.3,2611.2,40.36638761]
[1749001555936,0.00651538,2611.3,2611.2,40.91638761]
[1749001556154,0.00651538,2611.3,2611.2,40.36638761]
[1749001556359,0.00651538,2611.3,2611.2,40.91638761]
[1749001556972,0.00651538,2611.3,2611.2,50.99338761]
[1749001558268,0.00089623,2611.3,2611.2,50.99338761]
[1749001561455,0.00089623,2611.3,2611.2,48.36851336]
[1749001561657,0.00089623,2611.3,2611.2,44.63438761]
[1749001561873,0.00089623,2611.3,2611.2,50.99138761]
[1749001562387,0.00089623,2611.3,2611.2,40.65038761]
[1749001562545,0.00089623,2611.3,2611.2,45.52051336]
[1749001563152,0.00089623,2611.3,2611.2,46.07051336]
[1749001563679,1.26519623,2611.3,2611.2,15.58301386]
[1749001563836,1.26519623,2611.3,2611.2,23.62601386]
[1749001564164,1.26519623,2611.3,2611.2,31.62601386]
[1749001567155,1.26519623,2611.3,2611.2,31.62501386]
[1749001567359,1.26519623,2611.3,2611.2,23.58301386]
[1749001567686,1.26519623,2611.3,2611.2,31.62501386]
[1749001568298,0.64387532,2611.3,2611.2,31.62501386]
[1749001569184,2.62287425,2611.6,2611.2,9.947]
[1749001569388,2.62287425,2611.4,2611.2,9.947]
[1749001569586,0.26228743,2611.5,2611.2,9.947]
[1749001571294,1.2025,2611.3,2611.2,9.947]
[1749001571618,1.2025,2611.3,2611.2,17.947]
[1749001571778,1.2025,2611.3,2611.2,9.947]
[1749001572297,1.2025,2611.3,2610.5,3.8306006]
[1749001572298,1.2025,2611.3,2610.5,8.259]
[1749001572454,1.2042,2610.7,2610.6,1.687]
[1749001572658,1.2042,2610.7,2610.6,9.687]
[1749001573059,1.2042,2610.7,2610.6,19.687]
[1749001573957,1.2042,2610.7,2610.6,13.488827]
[1749001574159,1.2042,2610.7,2610.6,17.31936404]
[1749001574597,1.2042,2610.7,2610.6,13.488827]
[1749001575592,1.2042,2610.7,2610.6,19.842827]
[1749001577265,1.2042,2610.7,2610.6,16.041]
[1749001577691,1.2042,2610.7,2610.6,26.041]
[1749001578208,1.2042,2610.7,2610.6,29.87153704]
[1749001580304,1.2042,2610.7,2610.6,24.097645]
[1749001580717,1.2042,2610.7,2610.6,27.92818204]
[1749001581564,1.3379,2611.3,2610.8,8.0]
[1749001581801,1.3379,2611.3,2610.8,10.0]
[1749001582100,1.3379,2611.3,2611.0,8.0]
[1749001582301,1.3379,2611.3,2610.9,20.0]
[1749001582601,1.3379,2611.3,2611.0,8.0]
[1749001582780,3.93467425,2611.2,2610.7,8.0]
[1749001582979,3.93467425,2611.2,2610.9,8.0]
[1749001582980,1.3118,2611.0,2610.9,8.0]
[1749001583804,2.62287425,2611.0,2610.8,1.687]
[1749001584006,1.2377,2610.9,2610.8,1.687]
[1749001586135,1.2335,2610.8,2610.5,8.259]
[1749001586433,2.62287425,2610.7,2610.6,1.683]
[1749001586619,4.29691168,2610.7,2610.6,1.683]
[1749001589197,4.29691168,2610.7,2610.5,8.259]
[1749001589404,1.2892,2610.6,2610.5,8.259]
[1749001589601,1.2892,2610.6,2610.5,9.942]
[1749001591908,1.2892,2610.6,2610.5,8.259]
[1749001592220,1.71897117,2610.6,2610.5,9.942]
[1749001594410,1.71897117,2610.6,2610.5,8.259]
[1749001594933,0.42977117,2610.6,2610.5,1.683]
[1749001595133,0.42977117,2610.6,2610.2,1.683]
[1749001595333,5.2457485,2610.3,2610.2,1.683]
[1749001595533,7.66642335,2610.3,2610.2,1.683]
[1749001595845,1.2911,2610.1,2609.3,8.263]
[1749001596054,1.3261,2609.3,2609.2,1.683]
[1749001596235,2.62287425,2609.3,2609.2,1.683]
[1749001596423,4.21126168,2609.3,2609.2,1.683]
[1749001597216,1.2374,2609.2,2609.1,0.02]
[1749001598361,1.2374,2609.2,2608.1,0.02]
[1749001598362,3.86027425,2609.2,2608.1,0.02]
[1749001598570,1.2374,2608.4,2608.2,8.0]
[1749001598756,1.2374,2608.4,2608.1,6.393]
[1749001599252,1.2374,2608.4,2608.1,0.04]
[1749001599571,1.2374,2608.4,2608.2,8.0]
[1749001599864,1.2374,2608.4,2608.2,10.0]
[1749001600079,1.2374,2608.4,2608.1,8.02]
[1749001600377,1.2374,2608.4,2608.2,10.0]
[1749001601356,1.2374,2608.4,2608.3,16.653914]
[1749001601544,1.2238,2609.0,2608.2,2.567982]
[1749001601744,1.2238,2609.0,2608.2,18.0]
[1749001602053,1.2238,2609.0,2608.2,8.0]
[1749001603546,1.2238,2609.0,2608.3,8.99507696]
[1749001603767,1.2238,2609.0,2608.2,8.0]
[1749001603969,1.2238,2609.0,2608.3,5.461982]
[1749001604172,1.2238,2609.0,2608.2,11.83399507]
[1749001604487,6.06065177,2609.0,2608.3,6.354]
[1749001605281,1.224,2608.9,2608.5,8.0]
[1749001605692,1.224,2608.9,2608.4,9.952]
[1749001605986,1.2979,2608.6,2608.4,9.952]
[1749001609196,0.55,2608.5,2607.1,0.02]
[1749001609349,4.83685177,2607.7,2607.4,1.684]
[1749001609548,1.3379,2607.6,2607.4,1.684]
[1749001610976,1.3379,2607.6,2607.5,1.685]
[1749001615578,1.1966,2608.3,2607.5,1.685]
[1749001615909,1.1966,2608.3,2607.7,0.5434]
[1749001616602,1.1966,2608.3,2607.7,8.5434]
[1749001617157,1.1966,2608.3,2607.5,8.0]
[1749001617270,4.83685177,2608.2,2607.8,1.682]
[1749001617472,1.1966,2608.3,2607.7,8.0]
[1749001617473,1.1966,2608.3,2607.9,1.682]
[1749001618113,4.83685177,2608.2,2607.9,1.682]
[1749001618265,1.3102,2608.1,2607.9,1.682]
[1749001623737,1.8602,2608.1,2608.0,1.682]
[1749001624038,1.325,2608.0,2607.9,1.682]
[1749001624195,1.325,2607.8,2607.1,8.272]
[1749001624401,1.325,2607.5,2607.2,1.682]
[1749001624621,1.94118518,2607.5,2607.2,1.682]
[1749001625827,1.94118518,2607.5,2607.3,1.682]
[1749001626024,1.94118518,2607.5,2607.4,1.682]
[1749001626208,1.86818518,2607.5,2607.4,1.682]
[1749001628946,0.00445907,2742.7,2607.4,1.682]
[1749001628947,1.2638,2607.8,2607.4,1.682]
[1749001634605,4.83685177,2608.2,2607.4,1.682]
[1749001634606,6.12835177,2608.2,2607.4,1.682]
[1749001635063,1.2915,2608.1,2607.4,1.682]
[1749001635454,1.3171,2607.8,2607.4,1.682]
[1749001635634,0.61539518,2607.7,2607.4,1.682]
[1749001635997,1.2494,2607.5,2607.4,1.682]
[1749001638985,4.83685177,2607.0,2606.6,8.274]
[1749001639137,6.08625177,2607.0,2606.9,1.682]
[1749001639337,6.56993695,2607.0,2606.9,1.682]
[1749001640368,1.73308518,2607.0,2606.9,1.682]
[1749001640526,1.2494,2607.0,2606.9,1.682]
[1749001641481,6.08625177,2607.0,2606.6,8.274]
[1749001641777,6.08625177,2607.0,2606.7,1.682]
[1749001641993,1.2494,2607.0,2606.7,1.682]
[1749001642128,1.2637,2607.2,2606.7,1.682]
[1749001642481,0.61005518,2607.1,2606.7,1.682]
[1749001643580,6.06385177,2607.0,2606.7,1.682]
[1749001645277,6.06385177,2607.0,2606.6,8.274]
[1749001645478,6.06385177,2607.0,2606.7,1.68]
[1749001645639,1.227,2607.0,2606.7,1.68]
[1749001646081,1.8943907,2607.0,2606.7,1.68]
[1749001646286,1.2445,2606.8,2606.7,1.68]
[1749001646582,1.7945,2606.8,2606.7,1.68]
[1749001646984,0.55,2606.7,2606.6,8.274]
[1749001647166,1.7945,2606.7,2606.6,8.274]
[1749001647349,1.21313518,2606.7,2606.5,1.68]
[1749001647547,6.63135177,2606.6,2606.5,1.68]
[1749001651589,6.08135177,2606.6,2606.5,1.68]
[1749001651787,1.2445,2606.6,2606.5,1.68]
[1749001652172,1.94439364,2609.4,2606.5,1.68]
[1749001652173,1.2511,2606.9,2606.5,1.68]
[1749001652359,0.02,2607.9,2606.5,1.68]
[1749001652360,1.2511,2607.2,2606.5,1.7844]
[1749001652692,4.83685177,2607.3,2606.5,1.7844]
[1749001652848,5.50064695,2607.3,2606.5,1.7844]
[1749001653250,4.83685177,2607.3,2606.5,1.7844]
[1749001653491,4.83685177,2607.3,2606.5,11.7844]
[1749001653988,4.83685177,2607.3,2606.5,1.7844]
[1749001654770,4.83685177,2607.3,2606.5,0.1044]
[1749001654967,4.83685177,2607.3,2606.6,1.681]
[1749001655167,5.44564695,2607.3,2606.6,1.681]
[1749001655389,4.83685177,2607.3,2606.6,1.681]
[1749001655684,4.83685177,2607.3,2606.7,0.1044]
[1749001656889,4.83685177,2607.7,2606.8,8.277]
[1749001657052,4.83685177,2607.7,2607.0,0.39658014]
[1749001657259,4.83685177,2607.7,2606.9,0.1044]
[1749001657458,5.44940695,2607.7,2607.0,10.0]
[1749001658063,4.83685177,2607.7,2607.0,10.0]
[1749001658391,4.83685177,2607.7,2606.9,0.1044]
[1749001658551,4.83685177,2607.7,2606.9,6.4594]
[1749001661601,4.83685177,2607.7,2606.9,0.1044]
[1749001661771,4.83685177,2607.7,2606.9,6.4584]
[1749001661975,5.44940695,2607.7,2606.9,6.4584]
[1749001664070,5.44940695,2607.7,2606.9,10.2943708]
[1749001664278,6.12555177,2607.9,2607.0,0.1044]
[1749001664601,6.12555177,2607.9,2607.1,3.8356585]
[1749001664764,0.02,2607.9,2607.3,0.1044]
[1749001664964,0.02,2607.9,2607.3,3.93968048]
[1749001665201,0.02,2607.9,2607.4,4.39706115]
[1749001665498,0.02,2607.9,2607.4,0.56196805]
[1749001665662,0.02,2607.9,2607.5,1.68]
[1749001667711,1.304,2607.8,2607.5,1.68]
[1749001669206,0.02,2607.9,2607.5,1.68]
[1749001675991,0.02,2607.9,2607.5,5.51503842]
[1749001676187,0.02,2607.9,2607.5,1.68]
[1749001678201,0.02,2607.9,2607.5,13.51508815]
[1749001678724,0.02,2607.9,2607.5,13.51507964]
[1749001678901,0.02,2607.9,2607.6,3.8348655]
[1749001679293,0.02,2607.9,2607.5,13.51500619]
[1749001679600,0.02,2607.9,2607.6,3.83493493]
[1749001680187,0.02,2607.9,2607.5,13.51501582]
[1749001680386,0.02,2607.9,2607.5,9.68]
[1749001680692,3.59723111,2607.8,2607.5,9.68]
[1749001682129,1.2712,2607.8,2607.5,9.68]
[1749001682512,0.02,2607.9,2607.5,9.68]
[1749001682719,0.02,2607.9,2607.8,3.83464989]
[1749001683033,0.02,2607.9,2607.8,12.00244989]
[1749001683220,0.02,2607.9,2607.8,22.46009169]
[1749001683530,0.00086449,2607.9,2607.8,22.46009169]
[1749001684128,0.00086449,2607.9,2607.8,22.00244989]
[1749001687133,0.00086449,2607.9,2607.8,28.35044989]
[1749001693041,0.00086449,2607.9,2607.8,28.90044989]
[1749001693228,0.00086449,2607.9,2607.8,30.1062448]
[1749001693602,0.00086449,2607.9,2607.8,28.90044989]
[1749001693804,0.02,2608.9,2608.5,0.1678]
[1749001694010,0.02,2608.9,2608.6,9.678]
[1749001694221,0.02,2608.9,2608.7,8.271]
[1749001694740,0.02,2608.9,2608.7,8.65003497]
[1749001695648,1.3712,2608.8,2608.7,8.65003497]
[1749001695809,1.3712,2608.8,2608.7,10.32803497]
[1749001696859,0.02,2608.9,2608.7,10.32803497]
[1749001697234,0.02,2608.9,2608.8,8.0]
[1749001697547,1.3061,2608.9,2608.7,10.32803497]
[1749001697718,1.3061,2608.9,2608.8,1.678]
[1749001699652,1.3061,2608.9,2608.7,8.65003497]
[1749001699835,1.3061,2608.9,2608.8,1.677]
[1749001700237,1.92028454,2608.9,2608.7,8.65003497]
[1749001700437,6.13054543,2608.8,2608.7,8.65003497]
[1749001700675,6.13054543,2608.8,2608.7,10.32703497]
[1749001700886,6.12944543,2608.8,2608.7,10.32703497]
[1749001701676,6.12944543,2608.8,2608.7,8.271]
[1749001701842,6.80580843,2608.8,2608.7,9.948]
[1749001703880,1.970063,2608.8,2608.7,10.32422389]
[1749001704179,6.12944543,2608.8,2608.7,9.948]
[1749001706038,1.2937,2608.8,2608.7,9.948]
[1749001706247,1.2937,2608.8,2608.7,1.675]
[1749001707686,6.12944543,2608.8,2608.5,0.37663903]
[1749001707849,6.12944543,2608.8,2608.7,1.675]
[1749001709178,1.2937,2608.8,2608.7,1.675]
[1749001709689,6.12944543,2608.8,2608.7,1.675]
[1749001711323,1.2937,2608.8,2608.7,1.675]
[1749001711502,1.2937,2608.8,2607.8,3.83455245]
[1749001711672,1.2937,2608.8,2608.0,0.02]
[1749001712212,1.2937,2608.8,2608.1,6.343]
[1749001712508,2.32526746,2608.7,2608.1,6.343]
[1749001712715,2.32526746,2608.7,2608.2,0.02]
[1749001714373,1.2937,2608.8,2608.2,0.02]
[1749001715199,1.2937,2608.8,2608.3,1.675]
[1749001715402,1.65759675,2608.8,2608.3,1.675]
[1749001718943,1.2937,2608.8,2608.3,15.50890833]
[1749001719101,0.02,2608.9,2608.3,1.675]
[1749001719432,0.02,2608.9,2608.5,11.83362085]
[1749001720134,0.02,2608.9,2608.4,11.83371037]
[1749001721323,0.02,2608.9,2608.4,8.0]
[1749001721529,0.02,2608.9,2608.4,11.83371957]
[1749001722389,0.02,2608.9,2608.3,1.675]
[1749001722628,0.02,2608.9,2608.5,3.83361819]
[1749001723406,0.02,2608.9,2608.3,5.50881965]
[1749001723407,0.02,2608.9,2608.4,11.83366914]
[1749001723928,0.02,2608.9,2608.5,3.8336034]
[1749001724429,0.02,2608.9,2608.4,11.83367028]
[1749001725424,0.02,2608.9,2608.3,1.675]
[1749001725594,0.02,2608.9,2608.5,8.0]
[1749001725794,0.02,2608.9,2608.4,11.833732]
[1749001726127,0.02,2608.9,2608.5,8.0]
[1749001726724,0.02,2608.9,2608.4,3.833732]
[1749001726924,0.02,2608.9,2608.5,11.83361415]
[1749001727239,0.02,2608.9,2608.4,11.83370302]
[1749001727395,0.02,2608.9,2608.4,11.83375896]
[1749001728522,0.02,2608.9,2608.5,3.83361793]
[1749001728828,0.02,2608.9,2608.5,3.83347471]
[1749001729032,0.02,2608.9,2608.6,3.83345231]
[1749001729548,0.02,2608.9,2608.5,13.83355077]
[1749001729835,0.02,2608.9,2608.6,3.83347003]
[1749001730432,0.02,2608.9,2608.6,3.33347003]
[1749001731027,0.02,2608.9,2608.7,8.27]
[1749001736251,0.02,2608.9,2608.8,6.339]
[1749001737465,0.02,2608.9,2608.7,8.27]
[1749001737655,1.2697,2608.9,2608.7,8.27]
[1749001740127,0.02,2608.9,2608.7,8.27]
[1749001741725,0.02,2608.9,2608.7,12.10324755]
[1749001741924,0.02,2608.9,2608.8,3.83318]
[1749001742180,1.2767,2609.9,2609.1,3.83273925]
[1749001742509,1.2767,2609.9,2609.5,4.27288525]
[1749001742682,1.2767,2609.9,2609.5,10.17012198]
[1749001742890,1.2767,2609.9,2609.6,3.83196011]
[1749001743184,1.2767,2609.9,2609.5,6.338]
[1749001743538,1.63689675,2609.9,2609.5,6.338]
[1749001744022,0.38019675,2609.9,2609.5,6.338]
[1749001744224,0.02,2609.9,2609.5,6.338]
[1749001745231,0.02,2609.9,2609.5,6.53194908]
[1749001745951,0.02,2609.9,2609.5,10.36410022]
[1749001746266,0.02,2609.9,2609.8,10.0]
[1749001746561,0.02,2609.9,2609.8,9.672]
[1749001748444,0.02,2609.9,2609.8,10.6392]
[1749001748804,0.02,2609.9,2609.8,9.672]
[1749001748946,0.02,2609.9,2609.8,10.05395307]
[1749001749144,3.57906746,2610.5,2610.2,3.83109343]
[1749001749145,1.2538,2610.5,2610.2,3.83109343]
[1749001749489,1.3016,2610.8,2610.3,8.267]
[1749001749792,1.3016,2610.8,2610.4,1.672]
[1749001750247,1.3016,2610.8,2610.4,8.267]
[1749001750447,1.3016,2610.8,2610.5,1.672]
[1749001750985,1.66628675,2610.8,2610.5,1.672]
[1749001751160,1.3016,2610.8,2610.5,1.672]
[1749001754568,3.62686746,2610.8,2610.6,1.672]
[1749001757909,1.3016,2610.8,2610.6,1.672]
[1749001758306,1.66628675,2610.8,2610.6,1.672]
[1749001758518,0.02,2610.9,2610.6,1.672]
[1749001759922,0.02,2610.9,2610.6,5.50253231]
[1749001760088,0.02,2610.9,2610.8,8.0]
[1749001760289,0.02,2610.9,2610.8,11.8302436]
[1749001762640,0.00158633,2610.9,2610.8,8.0]
[1749001762789,0.00158633,2610.9,2610.8,11.8302436]
[1749001763631,0.00158633,2610.9,2610.6,1.672]
[1749001765042,0.00158633,2610.9,2610.6,9.672]
[1749001765548,0.00158633,2610.9,2610.6,1.672]
[1749001769134,0.00158633,2610.9,2610.8,11.8302436]
[1749001769441,0.00158633,2610.9,2610.8,8.0]
[1749001770045,0.00158633,2610.9,2610.8,14.329]
[1749001771611,0.00158633,2610.9,2610.6,3.02928947]
[1749001771812,0.00158633,2610.9,2610.8,1.668]
[1749001772247,0.00158633,2610.9,2610.8,5.4982436]
[1749001772414,0.00158633,2610.9,2610.8,1.668]
[1749001772618,0.00158633,2610.9,2610.8,11.668]
[1749001772939,0.00158633,2610.9,2610.8,11.8262436]
[1749001774007,0.00158633,2610.9,2610.8,7.996]
[1749001774665,0.00158633,2610.9,2610.8,9.93]
[1749001777247,0.36580171,2610.9,2610.8,9.93]
[1749001777449,1.60210171,2610.9,2610.8,9.93]
[1749001785735,1.23788633,2610.9,2610.8,9.93]
[1749001785940,1.23788633,2610.9,2610.8,1.668]
[1749001786362,0.00158633,2610.9,2610.8,1.668]
[1749001789023,2.32685379,2610.9,2610.8,1.668]
[1749001789249,2.32685379,2610.9,2610.4,8.263]
[1749001789250,1.2365,2610.8,2610.4,8.263]
[1749001789445,1.2365,2610.8,2610.5,1.668]
[1749001789446,1.59283538,2610.8,2610.5,1.668]